Cogmind - Beta 13 @@@ ROGUE MODE // 2024.04.17 @ 23:11:13 Player: Edirash Result: Destroyed by G-34 Mercenary with Small Laser Performance ------------- Evolutions (0) 0 Regions Visited (1) 200 Robots Destroyed (11) 55 Value Destroyed (289) 289 Prototype IDs (0) 0 Alien Tech Used (0) 0 Bonus (0) 0 TOTAL SCORE: 544 Bonus ------- None Cogmind --------- Core Integrity 0/250 Matter 236/300 Energy 250/250 System Corruption 4% Temperature Cool (12) Movement Hovering (180) Ox2 Location -10/Materials Parts ------- > --- POWER (1) -------- Ion Engine > --- PROPULSION (2) --- Hover Unit > --- UTILITY (2) ------ Small Storage Unit Light Armor Plating > --- WEAPON (2) ------- Assault Rifle Assault Rifle > --- INVENTORY (8) ---- Ion Engine Medium Matter Pod (33) Large Matter Pod (0) Terrain Scanner Power Shielding Peak State ------------ > --- POWER ------------ Ion Engine > --- PROPULSION ------- Aluminum Leg Aluminum Leg > --- UTILITY ---------- Small Storage Unit Hacking Suite > --- WEAPON ----------- Assault Rifle Light Assault Rifle > --- INVENTORY -------- Ion Engine Heat Sink Medium Laser Small Laser Datajack [Rating: 9] Favorites ----------- Power Ion Engine Engine Ion Engine Propulsion Hover Unit Leg Aluminum Leg Hover Unit Hover Unit Utility Small Storage Unit Storage Small Storage Unit Hackware Hacking Suite Protection Light Armor Plating Weapon Assault Rifle Ballistic Gun Assault Rifle Build | -11 -10 ------- Run | Yrd Mat Slots Evolved . | . . Power . | . . Propulsion . | . . Utility . | . . Weapon . | . . Parts Attached 20 | 5 15 Power 2 | 1 1 Engine 2 | 1 1 Core . | . . Reactor . | . . Propulsion 7 | 2 5 Treads . | . . Leg 3 | 2 1 Wheel . | . . Hover 4 | . 4 Flight . | . . Utility 6 | 1 5 Device . | . . Storage 4 | 1 3 Processor . | . . Hackware 1 | . 1 Protection 1 | . 1 Artifact . | . . Weapon 5 | 1 4 Energy Gun . | . . Energy Cannon . | . . Ballistic Gun 5 | 1 4 Ballistic Cannon . | . . Launcher . | . . Special Weapon . | . . Impact Weapon . | . . Slashing Weapon . | . . Piercing Weapon . | . . Special Melee Weapon . | . . Unidentified Prototypes . | . . Parts Lost 1 | . 1 Power . | . . Propulsion 1 | . 1 Utility . | . . Weapon . | . . Highest Loss Streak 1 | . 1 To Critical Strikes . | . . Average Slot Usage (%) 88 | . 88 Engine 14 | . 14 Leg 9 | . 9 Hover 17 | . 17 Storage 12 | . 12 Hackware 1 | . 1 Protection 7 | . 7 Ballistic Gun 24 | . 24 Naked Turns . | . . Heaviest Build 148 | 12 148 Greatest Support 20 | 20 20 Greatest Overweight (x) 24 | . 24 Average Overweight (x) . | . . Largest Inventory Capacity 30 | 8 30 Average Capacity 8 | 7 8 Most Carried 8 | 3 8 Average Carried 3 | 1 4 Final Capacity 8 | 8 8 Final Carried 5 | 3 5 Class Distribution -------------------- 100% | Mutant Dominant Class ---------------- Mutant | -10/Materials Resources | -11 -10 ----------- Run | Yrd Mat Matter Collected 535 | 216 319 Remotely . | . . Salvage Created 319 | . 319 Parts 30 | . 30 Haulers Intercepted . | . . Recyclers Shooed . | . . Parts Field Recycled . | . . Retrieved Matter . | . . Parts Self-Destructed . | . . Prevented . | . . Kills | -11 -10 ------- Run | Yrd Mat Combat Hostiles Destroyed 9 | . 9 Guns 9 | . 9 Classes Destroyed 4 | . 4 Operator 1 | . 1 Watcher 1 | . 1 Swarmer 3 | . 3 Grunt 6 | . 6 Best Kill Streak 4 | . 4 Combat Bots Only 4 | . 4 Max Kills in Single Turn 1 | . 1 Gunslinging . | . . Exploded . | . . Melee . | . . Uniques/NPCs Destroyed . | . . Combat | -11 -10 -------- Run | Yrd Mat Hostile Shots Fired 66 | . 66 Missed 11 | . 11 Damage Taken 571 | . 571 Core 259 | . 259 Absorbed by Shields . | . . Regen/Repaired (Parts) 23 | . 23 Core Remaining (%) 100 | 100 . Volleys Fired 43 | 1 42 Largest 2 | 1 2 Hottest 40 | 20 40 Shots Fired 57 | 1 56 Gun 57 | 1 56 Cannon . | . . Launcher . | . . Special . | . . Kinetic 57 | 1 56 Thermal . | . . Explosive . | . . Electromagnetic . | . . Robot Hit Streak 4 | . 4 Robot Miss Streak 5 | . 5 Penetration Max . | . . Secondary Targets . | . . Shots Hit Robots 28 | . 28 Core Hits 17 | . 17 Critical Kills 1 | . 1 Critical Parts Destroyed . | . . Critical Strikes 1 | . 1 Destroy 1 | . 1 Melee Attacks . | . . Impact . | . . Slashing . | . . Piercing . | . . Sneak Attacks . | . . Combat Hostiles . | . . Follow-up Attacks . | . . Damage Inflicted 379 | . 379 Guns 379 | . 379 Cannons . | . . Explosions . | . . Melee . | . . Ramming . | . . Kinetic 379 | . 379 Thermal . | . . Explosive . | . . Electromagnetic . | . . Impact . | . . Slashing . | . . Piercing . | . . Highest Corruption 4 | . 4 Average Corruption 3 | . 3 Corruption Purged . | . . Corruption Blocked . | . . Effects 2 | . 2 Data Loss (minor) 1 | . 1 Data Loss (major) 1 | . 1 Overload Shots . | . . Overflow Damage . | . . Projectiles . | . . Explosions . | . . Melee . | . . Knockbacks . | . . Impact . | . . Kinetic . | . . Secondary . | . . Self-Inflicted Damage . | . . Shots . | . . Rammed . | . . Targets Rammed . | . . Kicked . | . . Crushed . | . . Highest Temperature 15 | . 15 Average Temperature 4 | . 4 Received Heat Transfer 225 | . 225 Siege Activations . | . . Robots Corrupted . | . . Combat Hostiles . | . . Parts Fried . | . . Impact Corruptions . | . . Robots Melted . | . . Combat Hostiles . | . . Parts Melted . | . . Heat Transferred . | . . Parts Sabotaged . | . . Parts Stolen . | . . Parts Stripped . | . . Power Chain Reactions . | . . Alert | -11 -10 ------- Run | Yrd Mat Peak Influence 190 | . 190 Initial . | . . Average 93 | . 110 Maximum Alert Level . | . . Low Security (%) 100 | 100 100 Level 1 . | . . Level 2 . | . . Level 3 . | . . Level 4 . | . . Level 5 . | . . High Security . | . . Max Security . | . . Squads Dispatched 4 | . 4 Investigation 3 | . 3 Extermination . | . . Reinforcement 1 | . 1 Assault . | . . Garrison . | . . Intercept . | . . Searches Triggered . | . . Construction Impeded . | . . Haulers Reinforced . | . . Active Scanning Responses . | . . Cargo Convoy Interrupts . | . . Stealth | -11 -10 --------- Run | Yrd Mat Distress Signals . | . . Communications Jammed . | . . Distress Signals . | . . Times Spotted 18 | . 18 Peak Tracking Total 5 | . 5 Tactical Retreats 1 | . 1 Traps | -11 -10 ------- Run | Yrd Mat Traps Triggered 3 | . 3 Indirectly . | . . Trap Hack Attempts . | . . Triggered . | . . Disarmed . | . . Reprogrammed . | . . Reused . | . . Traps Extracted . | . . Installed . | . . Triggered . | . . Machines | -11 -10 ---------- Run | Yrd Mat Machines Disabled 1 | . 1 Max in Single Turn 1 | . 1 Machines Repaired . | . . Machines Dismantled . | . . Machines Sabotaged . | . . Overloaded Fab Kills . | . . Hacking | -11 -10 --------- Run | Yrd Mat Machines Accessed 5 | . 5 Terminals 3 | . 3 Fabricators . | . . Repair Stations 1 | . 1 Recycling Units 1 | . 1 Scanalyzers . | . . Garrison Access . | . . Total Hacks 18 | . 18 Successful 13 | . 13 Failed 5 | . 5 Catastrophic . | . . Database Lockouts . | . . Manual . | . . Terminals 10 | . 10 Fabricators . | . . Repair Stations 3 | . 3 Recycling Units 5 | . 5 Scanalyzers . | . . Garrison Access . | . . Terminal Hacks 6 | . 6 Record 2 | . 2 Alert Level 2 | . 2 Maintenance Status 1 | . 1 Transport Status 1 | . 1 Fabricator Hacks . | . . Repair Station Hacks 2 | . 2 Scan Component 1 | . 1 Repair 1 | . 1 Recycling Unit Hacks 5 | . 5 Recycle Component 1 | . 1 Process 4 | . 4 Scanalyzer . | . . Garrison Access Hacks . | . . Unauthorized Hacks . | . . Terminals . | . . Fabricators . | . . Repair Stations . | . . Recycling Units . | . . Scanalyzers . | . . Garrison Access . | . . Data Cores Recovered . | . . Used . | . . Hacking Detections 5 | . 5 Full Trace Events 5 | . 5 Feedback Events . | . . Feedback Blocked . | . . Robot Schematics Acquired . | . . Robots Built . | . . Authchips . | . . Time . | . . Total Robot Build Rating . | . . Part Schematics Acquired . | . . Parts Built . | . . Authchips . | . . Time . | . . Total Part Build Rating . | . . Parts Repaired 1 | . 1 Time 26 | . 26 Parts Recycled 1 | . 1 Recycled Matter 167 | . 167 Retrieved Matter . | . . Retrieved Components . | . . Parts Scanalyzed . | . . Part Schematics Acquired . | . . Parts Damaged . | . . Bothacking | -11 -10 ------------ Run | Yrd Mat Used RIF Installer . | . . Robots Hacked . | . . Non-combat . | . . Combat . | . . Robot Hacks Applied . | . . Relay Couplers Released . | . . Fabnet Peak Effective % . | . . Robots Rewired . | . . Allies Hacked . | . . Hacks Repelled . | . . Allies | -11 -10 -------- Run | Yrd Mat Total Allies . | . . Largest Group . | . . Highest-Rated Group . | . . Highest-Rated Ally . | . . Total Orders . | . . Ally Attacks . | . . Total Damage . | . . Kills . | . . Allies Corrupted . | . . Allies Melted . | . . Intel | -11 -10 ------- Run | Yrd Mat Robot Analysis Total . | . . Derelict Logs Recovered . | . . Drone Launches . | . . Drone Recoveries . | . . Exploration | -11 -10 ------------- Run | Yrd Mat Turns Passed 800 | 122 678 Spaces Moved 560 | 77 483 Core 14 | 14 . Treads . | . . Legs 186 | 63 123 Wheels . | . . Hover 360 | . 360 Flight . | . . Fastest Speed 50 | 50 56 Average Speed 106 | 107 106 Slowest Speed 1500 | 120 1500 Overloaded Moves . | . . Propulsion Burnouts . | . . Robots Hopped . | . . Cave-ins Triggered . | . . Exploration Rate (%) 26 | 6 47 Regions Visited 1 Branch Regions . Pre-discovered Areas . | . . Known Exits Taken . | . . Unknown Exits Taken 1 | 1 . Scrap Searched . | . . Spaces Dug . | . . Terrain Destroyed . | . . Melee . | . . Projectile . | . . AOE . | . . Terrain Rammed . | . . Walls Destroyed . | . . Machines Disabled . | . . Actions | -11 -10 --------- Run | Yrd Mat Total 712 | 115 597 Wait 47 | 25 22 Move 559 | 76 483 Hop . | . . Pick Up 27 | 8 19 Fast Attach 2 | . 2 Attach 13 | 5 8 Detach . | . . Swap 5 | . 5 Drop 16 | . 16 Fire 43 | 1 42 Melee . | . . Ram . | . . Kick . | . . Crush . | . . Escape Stasis . | . . Rewire . | . . Trap . | . . Miscellaneous . | . . Route ------- -11/Scrapyard -10/Materials History --------- Turn | Location | Event 45 | -11/Scrapyard | Discovered new exit (range 15) 123 | -11/Scrapyard | Entered Materials 266 | -10/Materials | Core integrity fell below 50% 335 | -10/Materials | Build established: Mutant 749 | -10/Materials | Repaired Assault Rifle 796 | -10/Materials | Core integrity fell below 20% 801 | -10/Materials | Destroyed by G-34 Mercenary with Small Laser Last Messages --------------- Scanning Assault Rifle... Ready to Repair: Assault Rifle Rating: 1 Time: 26 >>Repair Repairing Assault Rifle... ETC: 26 00723_ ALERT: Suspicious activity at Repair Station M001. Dispatching Investigation squad. 00749_ Repair station completes Assault Rifle repairs. 00750_ Acquired Assault Rifle. 00758_ Atomic Centrifuge disabled. 00758_ G-34 Mercenary destroyed. 00773_ Acquired 41 matter. 00774_ K-01 Serf collects debris. 00776_ R-06 Scavenger collects Ion Engine. 00778_ K-01 Serf collects debris. 00791_ Hover Unit destroyed. Map ----- +----------------------------------------------------+ | ?????????????????????????????????????????# | | ?????????????????????????????????????????# """ | | ?????????????????????????????????????????# """ | | ?????????????????????????????????????????# """ | | ?????????????????????????????????????????# | | ?????????????????????????????????????????# """ | | ?????????????????????????????????????????# """ | | ?????????????????????????????????????????# """ | | ?????????????????????????????????????????# | | ?????????????????????????????????????????#######+# | | ?????????????????????????????????????????????# | | ????????????????????????????????????????###### | | ????????????????????????????????????????# # ## | | ????????????????????????????????????????? # ## | | ?????????????????????????????????????###### ## + | | ?????????????????????????????????????# # | | ????????????????????##################+## # | | ????????????????????# """ # # *! #" | | ????????????????????# "R" # # =*! #" | | ????????????????????# " " # #*!* #" | | ????????????????????# # ! +*! # | | ????????????????????# k # !! #! # | | ????????????????????# """ # !! #] # | | ????????????????????# """ # # ## | | ????????????????????# "" # # ## | | ????????????????????#####@############### """ T# | | ??????????????????????# [ ############# """ ## | | ?????????????????######g """ # | | ?????????? / g # | | ??????????? ######## # | | ??????????????????????# #####+#### ##"T"#### | | ??????????????????????## ## # ######## | | ???????????????????????# ## """ # | | ???????????????????????# ## """ + | | ???????????????????????/kt ## """ # | | ???????????????????????# ## # ###### | | ???????????????????????# ## ""##### #????# | | ???????????????????????# ## ""#???# ###### | | ???????????????????????# ^ ## T"#???# ## # | | ???????????????????????# ## ""#???# ## # | | ???????????????????????# ## ""#???# ## # | | ???????????????????????+ ?# #???# ## # | | ???????????????????????# ?#########???# ## # | | ???????????????????????? ?????????????# ## # | | ????????????????????????????????????????# ## # | | ????????????????????????????????????????# ###+## | | ??????????????????????????????????####### | | ??????????????????????????????????# # | | ??????????????????????????????????# """ # T | | ??????????????????????????????????# """ # | +----------------------------------------------------+ Best States ------------- Heat Dissipation 25 Energy Generation 10 Energy Capacity 250 Matter Stores 300 Matter Capacity 300 Sight Range 16 Terrain Scan Density 10 Armor Coverage 150 Evasion (%) 55 Offensive Hacking 10 Item Schematics ----------------- None Robot Schematics ------------------ None Fabricated ------------ Nothing Alien Tech Used ----------------- None Achievements -------------- None Challenges ------------ None Game ------ Seed FluxPowerShifter Manual? 0 Play Time 00:25:38 Cumulative 0.7 hours Start 2024.04.17 @ 22:45:40 End 2024.04.17 @ 23:11:13 Sessions 1 Manual Loads 0 Difficulty Rogue Special Mode None Game No. 4 Rogue 4 Adventurer 0 Explorer 0 Win Type - Total 0 Types 0/0/0/0/0/0/0/0/0 Lore% 3 Gallery% 4 Achievement% 6 Wizard Run 0 Options --------- Layout 1 ASCII 0 Keyboard 0 Movement Mouse Keybinds 0 Fullscreen 1 Font 48/Smallcaps Map View 50x35 Zoom Use 0% Tactical HUD 1 Map Filters NONE Filters NONE Steam 1 RUN: 76cbadb3-6900-4012-91cc-99e5b5888998